Cogmind - Beta 14 *** ADVENTURER MODE // 2024.11.14 @ 14:28:40 Player: 7604 Result: Self-destructed Performance ------------- Evolutions (1) 500 Regions Visited (4) 800 Robots Destroyed (29) 145 Value Destroyed (548) 548 Prototype IDs (5) 100 Alien Tech Used (0) 0 Bonus (183) 183 TOTAL SCORE: 2276 Bonus ------- Follower Combat Kills 183 Cogmind --------- Core Integrity 400/400 Matter 300/300 Energy 265/265 System Corruption 0% Temperature Cool (0) Movement Walking (120) Location -9/Storage Parts ------- > --- POWER (1) -------- Reinforced Ion Engine > --- PROPULSION (4) --- Aluminum Leg Aluminum Leg Aluminum Leg Carbon-fiber Leg > --- UTILITY (2) ------ Large Storage Unit Structural Scanner > --- WEAPON (2) ------- Particle Gun Assault Rifle > --- INVENTORY (15) --- Light Ion Engine Fission Core Aluminum Leg Aluminum Leg Small Storage Unit Medium Storage Unit Experimental Sensor Array Medium Armor Plating Medium Armor Plating Medium Armor Plating Bomb Drone Bay (16/16) Battle Cannon Mining Laser Flail Peak State ------------ > --- POWER ------------ Reinforced Ion Engine > --- PROPULSION ------- Aluminum Leg Aluminum Leg Aluminum Leg Carbon-fiber Leg > --- UTILITY ---------- Large Storage Unit Structural Scanner > --- WEAPON ----------- Particle Gun Assault Rifle > --- INVENTORY -------- Light Ion Engine Fission Core Aluminum Leg Aluminum Leg Small Storage Unit Medium Storage Unit Experimental Sensor Array Medium Armor Plating Medium Armor Plating Medium Armor Plating Bomb Drone Bay Battle Cannon Mining Laser Flail [Rating: 17] Favorites ----------- Power Light Ion Engine Engine Light Ion Engine Propulsion Aluminum Leg Leg Aluminum Leg Utility Medium Storage Unit Device Structural Scanner Storage Medium Storage Unit Weapon Assault Rifle Energy Gun Particle Gun Ballistic Gun Assault Rifle Special Weapon Mining Laser Build | -11 -10 -10 -9 -9 ------- Run | Yrd Mat Min Mat Sto Slots Evolved 2 | . . . 2 . Power . | . . . . . Propulsion 2 | . . . 2 . Utility . | . . . . . Weapon . | . . . . . Parts Attached 25 | 6 9 1 6 3 Power 3 | 1 1 . 1 . Engine 3 | 1 1 . 1 . Core . | . . . . . Reactor . | . . . . . Propulsion 10 | 2 1 . 4 3 Treads . | . . . . . Leg 10 | 2 1 . 4 3 Wheel . | . . . . . Hover . | . . . . . Flight . | . . . . . Utility 6 | 1 4 . 1 . Device 3 | . 3 . . . Storage 3 | 1 1 . 1 . Processor . | . . . . . Hackware . | . . . . . Protection . | . . . . . Artifact . | . . . . . Weapon 6 | 2 3 1 . . Energy Gun 2 | . 1 1 . . Energy Cannon . | . . . . . Ballistic Gun 3 | 2 1 . . . Ballistic Cannon . | . . . . . Launcher . | . . . . . Special Weapon 1 | . 1 . . . Impact Weapon . | . . . . . Slashing Weapon . | . . . . . Piercing Weapon . | . . . . . Special Melee Weapon . | . . . . . Unidentified Prototypes . | . . . . . Parts Lost 1 | . 1 . . . Power 1 | . 1 . . . Propulsion . | . . . . . Utility . | . . . . . Weapon . | . . . . . Highest Loss Streak 1 | . 1 . . . To Critical Strikes . | . . . . . Average Slot Usage (%) 98 | . 99 100 93 100 Engine 13 | . 14 14 11 11 Leg 31 | . 28 28 37 44 Device 12 | . 13 14 11 11 Storage 13 | . 14 14 11 11 Energy Gun 12 | . 12 14 11 11 Ballistic Gun 13 | . 14 14 11 11 Peak Build Rating 17 | 6 8 11 14 17 Average Rating 9 | 4 6 9 13 14 On Entrance 7 | . 6 8 11 14 Naked Turns . | . . . . . Heaviest Build 36 | 11 18 19 36 36 Greatest Support 45 | 20 20 20 40 45 Greatest Overweight (x) . | . . . . . Average Overweight (x) . | . . . . . Largest Inventory Capacity 15 | 8 10 10 15 15 Average Capacity 11 | 6 9 10 13 15 Most Carried 15 | 2 10 10 12 15 Average Carried 8 | . 6 9 9 12 Final Capacity 15 | 8 10 10 15 15 Final Carried 15 | 2 10 10 11 15 Class Distribution -------------------- 77% | Mutant 22% | Scavenger-Mutant Dominant Class ---------------- Mutant | -10/Materials Mutant | -10/Mines Scavenger-Mutant | -9/Materials Scavenger-Mutant | -9/Storage Resources | -11 -10 -10 -9 -9 ----------- Run | Yrd Mat Min Mat Sto Matter Collected 771 | 253 153 197 87 81 Remotely . | . . . . . Salvage Created 923 | . 370 249 120 184 Parts 59 | . 28 13 12 6 Haulers Intercepted 4 | . 2 . 1 1 Recyclers Shooed . | . . . . . Parts Field Recycled . | . . . . . Retrieved Matter . | . . . . . Parts Self-Destructed . | . . . . . Prevented . | . . . . . Kills | -11 -10 -10 -9 -9 ------- Run | Yrd Mat Min Mat Sto Combat Hostiles Destroyed 19 | . 10 5 1 3 Guns 19 | . 10 5 1 3 Classes Destroyed 8 | . 5 3 . . Worker 1 | . . 1 . . Builder 1 | . 1 . . . Hauler 4 | . 2 . 1 1 Recycler 1 | . . 1 . . Watcher 5 | . 3 . 2 . Swarmer 8 | . 8 . . . Grunt 9 | . 2 3 1 3 Assembled 2 | . . 2 . . Best Kill Streak 4 | . 3 4 2 2 Combat Bots Only 3 | . 3 2 1 2 Max Kills in Single Turn 2 | . 2 1 1 1 Gunslinging 1 | . 1 . . . Exploded . | . . . . . Melee . | . . . . . Uniques/NPCs Destroyed . | . . . . . Combat | -11 -10 -10 -9 -9 -------- Run | Yrd Mat Min Mat Sto Hostile Shots Fired 107 | . 68 25 4 10 Missed 33 | . 24 6 . 3 Damage Taken 608 | . 290 198 32 88 Core 121 | . 75 46 . . Absorbed by Shields . | . . . . . Ignored by Resistances 191 | . 96 60 10 25 Core Remaining (%) 75 | 100 . 51 . . Volleys Fired 77 | . 34 17 9 17 Largest 2 | . 2 2 2 2 Hottest 100 | . 100 85 85 85 Shots Fired 148 | . 66 32 16 34 Gun 146 | . 64 32 16 34 Cannon . | . . . . . Launcher . | . . . . . Special 2 | . 2 . . . Kinetic 76 | . 33 17 9 17 Thermal 72 | . 33 15 7 17 Explosive . | . . . . . Electromagnetic . | . . . . . Robot Hit Streak 11 | . 9 7 4 11 Robot Miss Streak 4 | . 4 1 1 1 Penetration Max . | . . . . . Secondary Targets 3 | . 1 2 . . Max Gunslinging Chain 1 | . 1 1 . . Shots Hit Robots 104 | . 39 25 10 30 Core Hits 44 | . 20 12 4 8 Critical Kills . | . . . . . Critical Parts Destroyed . | . . . . . Critical Strikes 4 | . 2 1 . 1 Burn 4 | . 2 1 . 1 Melee Attacks . | . . . . . Impact . | . . . . . Slashing . | . . . . . Piercing . | . . . . . Sneak Attacks . | . . . . . Combat Hostiles . | . . . . . Follow-up Attacks . | . . . . . Damage Inflicted 1453 | . 522 349 153 429 Guns 1453 | . 522 349 153 429 Cannons . | . . . . . Explosions . | . . . . . Melee . | . . . . . Ramming . | . . . . . Kinetic 720 | . 241 213 70 196 Thermal 733 | . 281 136 83 233 Explosive . | . . . . . Electromagnetic . | . . . . . Impact . | . . . . . Slashing . | . . . . . Piercing . | . . . . . Highest Corruption . | . . . . . Average Corruption . | . . . . . Corruption Purged . | . . . . . Corruption Blocked . | . . . . . Overload Shots . | . . . . . Overflow Damage . | . . . . . Projectiles . | . . . . . Explosions . | . . . . . Melee . | . . . . . Knockbacks . | . . . . . Impact . | . . . . . Kinetic . | . . . . . Secondary . | . . . . . Self-Inflicted Damage . | . . . . . Shots . | . . . . . Rammed . | . . . . . Targets Rammed . | . . . . . Kicked . | . . . . . Crushed . | . . . . . Highest Temperature 234 | . 96 234 99 216 Average Temperature 52 | . 28 78 33 69 Received Heat Transfer 291 | . 72 135 24 60 Siege Activations . | . . . . . Robots Corrupted . | . . . . . Combat Hostiles . | . . . . . Parts Fried . | . . . . . Impact Corruptions . | . . . . . Robots Melted . | . . . . . Combat Hostiles . | . . . . . Parts Melted 3 | . 2 1 . . Heat Transferred 2220 | . 962 444 185 629 Parts Sabotaged . | . . . . . Parts Stolen . | . . . . . Parts Stripped . | . . . . . Power Chain Reactions . | . . . . . Alert | -11 -10 -10 -9 -9 ------- Run | Yrd Mat Min Mat Sto Peak Influence 244 | . 165 105 199 244 Initial 71 | . . 45 17 71 Average 79 | . 78 60 97 135 Maximum Alert Level 1 | . . . . 1 Low Security (%) 96 | 100 100 100 100 72 Level 1 3 | . . . . 27 Level 2 . | . . . . . Level 3 . | . . . . . Level 4 . | . . . . . Level 5 . | . . . . . High Security . | . . . . . Max Security . | . . . . . Squads Dispatched 4 | . 1 . 3 . Investigation 3 | . 1 . 2 . Extermination . | . . . . . Reinforcement 1 | . . . 1 . Assault . | . . . . . Garrison . | . . . . . Intercept . | . . . . . Searches Triggered . | . . . . . Construction Impeded . | . . . . . Haulers Reinforced . | . . . . . Active Scanning Responses . | . . . . . Cargo Convoy Interrupts . | . . . . . Stealth | -11 -10 -10 -9 -9 --------- Run | Yrd Mat Min Mat Sto Distress Signals 4 | . . . . 4 Communications Jammed . | . . . . . Distress Signals . | . . . . . Times Spotted 37 | . 15 9 7 6 Peak Tracking Total 5 | . 3 4 2 5 Tactical Retreats 1 | . . . . 1 Traps | -11 -10 -10 -9 -9 ------- Run | Yrd Mat Min Mat Sto Traps Triggered 1 | . . . 1 . Indirectly . | . . . . . Trap Hack Attempts . | . . . . . Triggered . | . . . . . Disarmed . | . . . . . Reprogrammed . | . . . . . Reused . | . . . . . Traps Extracted . | . . . . . Installed . | . . . . . Triggered . | . . . . . Machines | -11 -10 -10 -9 -9 ---------- Run | Yrd Mat Min Mat Sto Machines Disabled 1 | . 1 . . . Max in Single Turn 1 | . 1 . . . Machines Repaired . | . . . . . Machines Dismantled . | . . . . . Machines Sabotaged . | . . . . . Overloaded Fab Kills . | . . . . . Hacking | -11 -10 -10 -9 -9 --------- Run | Yrd Mat Min Mat Sto Machines Accessed 17 | . 8 1 5 3 Terminals 13 | . 7 . 4 2 Fabricators . | . . . . . Repair Stations . | . . . . . Recycling Units 2 | . 1 . . 1 Scanalyzers 1 | . . . 1 . Garrison Access . | . . . . . Total Hacks 44 | . 24 1 11 8 Successful 20 | . 11 1 6 2 Failed 24 | . 13 . 5 6 Catastrophic 4 | . 2 . 2 . Database Lockouts . | . . . . . Manual 32 | . 19 . 8 5 Terminals 34 | . 20 . 9 5 Fabricators . | . . . . . Repair Stations . | . . . . . Recycling Units 7 | . 4 . . 3 Scanalyzers 2 | . . . 2 . Garrison Access . | . . . . . Terminal Hacks 15 | . 9 1 4 1 Part Schematic 2 | . 1 . 1 . Robot Analysis 3 | . 3 . . . Prototype ID Bank 2 | . 2 . . . Open Door 2 | . . 1 . 1 Branch Access Points 2 | . 1 . 1 . Terminal Index 2 | . 1 . 1 . Locate Traps 2 | . 1 . 1 . Fabricator Hacks . | . . . . . Repair Station Hacks . | . . . . . Recycling Unit Hacks 1 | . 1 . . . Retrieve Components 1 | . 1 . . . Scanalyzer 2 | . . . 2 . Insert Component 2 | . . . 2 . Garrison Access Hacks . | . . . . . Unauthorized Hacks 2 | . 1 . . 1 Terminals . | . . . . . Fabricators . | . . . . . Repair Stations . | . . . . . Recycling Units 2 | . 1 . . 1 Reject 2 | . 1 . . 1 Scanalyzers . | . . . . . Garrison Access . | . . . . . Data Cores Recovered . | . . . . . Used . | . . . . . Hacking Detections 16 | . 8 . 5 3 Full Trace Events 2 | . 1 . 1 . Feedback Events . | . . . . . Feedback Blocked . | . . . . . Robot Schematics Acquired . | . . . . . Robots Built . | . . . . . Authchips . | . . . . . Time . | . . . . . Total Robot Build Rating . | . . . . . Part Schematics Acquired 2 | . 1 . 1 . Parts Built . | . . . . . Authchips . | . . . . . Time . | . . . . . Total Part Build Rating . | . . . . . Parts Repaired . | . . . . . Time . | . . . . . Parts Recycled . | . . . . . Recycled Matter . | . . . . . Retrieved Matter . | . . . . . Retrieved Components 4 | . 4 . . . Parts Scanalyzed . | . . . . . Part Schematics Acquired . | . . . . . Parts Damaged . | . . . . . Bothacking | -11 -10 -10 -9 -9 ------------ Run | Yrd Mat Min Mat Sto Used RIF Installer . | . . . . . Robots Hacked . | . . . . . Non-combat . | . . . . . Combat . | . . . . . Robot Hacks Applied . | . . . . . Relay Couplers Released . | . . . . . Fabnet Peak Effective % . | . . . . . Robots Rewired . | . . . . . Allies Hacked . | . . . . . Hacks Repelled . | . . . . . Allies | -11 -10 -10 -9 -9 -------- Run | Yrd Mat Min Mat Sto Total Allies 2 | . . 2 . . Largest Group 2 | . . 2 2 2 Highest-Rated Group 45 | . . 45 45 45 Highest-Rated Ally 31 | . . 31 31 31 Total Orders . | . . . . . Ally Attacks 18 | . . 1 7 10 Total Damage 288 | . . 21 148 119 Kills 7 | . . 1 4 2 Allies Corrupted . | . . . . . Allies Melted . | . . . . . Intel | -11 -10 -10 -9 -9 ------- Run | Yrd Mat Min Mat Sto Robot Analysis Total 2 | . 2 . . . Derelict Logs Recovered 2 | . . 2 . . Drone Launches . | . . . . . Drone Recoveries . | . . . . . Exploration | -11 -10 -10 -9 -9 ------------- Run | Yrd Mat Min Mat Sto Turns Passed 1976 | 54 753 659 264 246 Spaces Moved 1337 | 39 523 478 155 142 Core 4 | 4 . . . . Treads . | . . . . . Legs 1333 | 35 523 478 155 142 Wheels . | . . . . . Hover . | . . . . . Flight . | . . . . . Fastest Speed 50 | 50 120 120 120 120 Average Speed 119 | 112 120 120 120 120 Slowest Speed 120 | 120 120 120 120 120 Overloaded Moves . | . . . . . Propulsion Burnouts . | . . . . . Robots Hopped . | . . . . . Cave-ins Triggered . | . . . . . Exploration Rate (%) 42 | 4 90 71 21 28 Regions Visited 4 Branch Regions 2 Pre-discovered Areas 1 | . . 1 . . Known Exits Taken 2 | . 1 . 1 . Unknown Exits Taken 2 | 1 . 1 . . Scrap Searched 1 | . . 1 . . Spaces Dug 1 | . 1 . . . Terrain Destroyed 1 | . 1 . . . Melee . | . . . . . Projectile 1 | . 1 . . . AOE . | . . . . . Terrain Rammed . | . . . . . Walls Destroyed . | . . . . . Machines Disabled . | . . . . . Actions | -11 -10 -10 -9 -9 --------- Run | Yrd Mat Min Mat Sto Total 1559 | 46 576 537 216 184 Wait 86 | . 2 26 41 17 Move 1333 | 38 522 477 154 142 Hop . | . . . . . Pick Up 20 | 2 5 7 3 3 Fast Attach 12 | 6 4 1 1 . Attach 3 | . 1 . 2 . Detach 4 | . 3 . 1 . Swap 10 | . 4 . 3 3 Drop 14 | . 1 9 2 2 Fire 77 | . 34 17 9 17 Melee . | . . . . . Ram . | . . . . . Kick . | . . . . . Crush . | . . . . . Escape Stasis . | . . . . . Rewire . | . . . . . Trap . | . . . . . Miscellaneous . | . . . . . Route ------- -11/Scrapyard -10/Materials (discovered 5 exits: *Mat x3 / *Min x2) -10/Mines (discovered 2 exits: *Mat x2) -9/Materials (discovered 4 exits: *Min x2 / *Sto x2) -9/Storage History --------- Turn | Location | Event 6 | -11/Scrapyard | Discovered new exit (range 15) 55 | -11/Scrapyard | Entered Materials 71 | -10/Materials | Discovered new exit (range 6) 217 | -10/Materials | Identified exit to Mines 311 | -10/Materials | Build established: Mutant 450 | -10/Materials | Discovered new exit (range 5) 578 | -10/Materials | Discovered new exit (range 12) 716 | -10/Materials | Discovered new exit (range 3) 808 | -10/Materials | Entered Mines 885 | -10/Mines | Learned Materials garrison access intel 913 | -10/Mines | Assembled infested the area 913 | -10/Mines | A weapon hastily lodged in a ceiling crevice suddenly fell to the ground 918 | -10/Mines | Assisted by a Guerilla fighting off Assembled 1035 | -10/Mines | Found the Drone Emporium 1044 | -10/Mines | Found Prototype Device 1107 | -10/Mines | Discovered new exit (range 8) 1194 | -10/Mines | Discovered new exit (range 3) 1389 | -10/Mines | Found a damaged Exp. Sensor Array with a note attached 1392 | -10/Mines | Found Prototype Device 1467 | -10/Mines | Entered Materials 1467 | -9/Materials | Accompanied by 2 allies 1467 | -9/Materials | Evolved 2 slots: Propulsion x2 1472 | -9/Materials | Led the pair of lost Derelicts to an unsafe place 1602 | -9/Materials | Discovered new exit (range 5) 1630 | -9/Materials | Identified Exp. Sensor Array 1630 | -9/Materials | Identified Bomb Drone Bay 1648 | -9/Materials | Identified exit to Mines 1648 | -9/Materials | Identified exit to Storage 1731 | -9/Materials | Entered Storage 1731 | -9/Storage | Accompanied by 2 allies 1840 | -9/Storage | Build established: Scavenger-Mutant 1977 | -9/Storage | Self-destructed Last Messages --------------- 01929_ K-01 Serf collects debris. 01929_ Acquired 16 matter. 01930_ R-06 Scavenger collects Med. Storage Unit. 01931_ Dropped Aluminum Leg. 01932_ K-01 Serf collects debris. 01933_ Acquired 10 matter. 01935_ R-06 Scavenger collects Terrain Scanner. 01936_ Dropped Aluminum Leg. 01937_ K-01 Serf collects debris. 01939_ Acquired 10 matter. 01940_ K-01 Serf collects debris. 01960_ R-06 Scavenger inserts Terrain Scanner into recycling unit. 01967_ Connecting with Recycling Unit... >>Trojan(Reject) Trojan loaded successfully. Testing... Ejection routine running. 01969_ R-06 Scavenger collects Heat Sink. Map ----- +----------------------------------------------------+ | ??????????????????????################### ???????? | | #####################?################### ???????? | | #####################?## # ???????? | | ##?## + ???????? | | ########### ##?##^/ # ???????? | | ########### ##?##=^ ^ ##???????? | | ##??####### ##?##=/ ? ???????? | | +## ##??##!! # #####/ [! ##??? ????????? | | # ##??##!! # ##### !! ##??? ????????? | | " # ##??##!! + ! ##### ???? | | T # ##??#####T# #######+###### #####/##### ???? | | " # ##??####### #####% T##### ### ! !# ???? | | + ##?????#### ##?##" "###?## + ! ! # ???? | | # ##??????? # ##?## !###?######! # ???? | | # ##??????? # ##?## !!##??######* # ???? | | + ##??????? + ?#######??????## # #### | | #######??????? # ?################+######+#### | | #########??????? # ?????###########/ | | ####???????????? # u *%*!=%+== = | | ?????????????????? #/############### !%= [ | | ?????????????????? # ########## | | ????????????????? + ##??###### ! | | ?????????????????#### ##??##"""# % | | ?????????????????#### ######"Y"######+####### | | ??????????????????? #[/ ######" "# #### ####### | | ??????????????????? # [ @!+ + ##%##????? | | ??????????????????? ########### ##!##????? | | ??????????????????? ########### ##!####### | | ?????????????????????????????## ##!####### | | ?????????????????????????????## """ """ / =% | | ?????????????????????????????## """ """ # = | | ?????????????????????????????## """ """ ###### ## | | ?????????????????????????????## ###### ## | | ?????????????????????????????#############????? ## | | ????????????????????????????? +????? ## | | ?????????????????????????????????????????????????? | | ?????????????????????????????????????????????????? | | ?????????????????????????????????????????????????? | | ?????????????????????????????????????????????????? | | ?????????????????????????????????????????????????? | | ?????????????????????????????????????????????????? | | ?????????????????????????????????????????????????? | | ?????????????????????????????????????????????????? | | ?????????????????????????????????????????????????? | | ?????????????????????????????????????????????????? | | ?????????????????????????????????????????????????? | | ?????????????????????????????????????????????????? | | ?????????????????????????????????????????????????? | | ?????????????????????????????????????????????????? | | ?????????????????????????????????????????????????? | +----------------------------------------------------+ Best States ------------- Heat Dissipation 28 Energy Generation 12 Energy Capacity 265 Matter Stores 300 Matter Capacity 300 Sight Range 16 Terrain Scan Density 10 Resistance: KI 20 Resistance: TH 20 Resistance: EX 20 Resistance: EM 20 Resistance: I 20 Resistance: S 20 Resistance: P 20 Evasion (%) 55 Offensive Hacking 10 Item Schematics ----------------- Sml. Storage Unit | -10/Materials | Hacked Plasma Cutter | -9/Materials | Hacked Robot Schematics ------------------ None Fabricated ------------ Nothing Alien Tech Used ----------------- None Achievements -------------- None Challenges ------------ None Game ------ Seed SigixConstructSuperbattery Manual? 0 Play Time 00:17:53 Cumulative 150.9 hours Start 2024.09.16 @ 10:00:45 End 2024.11.14 @ 14:28:40 Sessions 3 Manual Loads 0 Difficulty Adventurer Special Mode None Game No. 77 Rogue 14 Adventurer 63 Explorer 0 Win Type - Total 7 Types 7/0/0/0/0/0/0/0/0 Lore% 67 Gallery% 66 Achievement% 54 Wizard Run 0 Options --------- Layout 2 ASCII 0 Keyboard 1 Movement Numpad Keybinds 0 Fullscreen 2 Font 24/Tamsyn Map View 50x44 Zoom Use 0% Tactical HUD 1 Map Filters NONE Filters NONE Steam 1 RUN: 96e4c398-4665-4b20-90f2-8055abadc2a0